[Event "GM Clarion Congress Hotel 2020"]
[Site "Ceske Budejovice"]
[Date "2020.07.01"]
[Round "1.2"]
[White "Malinovsky, Karel"]
[Black "Mikes, Jan"]
[Result "1-0"]
[ECO "B33"]
[WhiteElo "2459"]
[BlackElo "2373"]
[Annotator "RC"]
[PlyCount "131"]
[EventDate "2020.07.01"]
[EventType "tourn"]
[EventCountry "CZE"]
[SourceTitle "playchess.com"]
[Source "ChessBase"]
[SourceQuality "1"]
[TimeControl "40/5400+30:1800+30"]

1. e4 {[%emt 0:00:00]} c5 {[%emt 0:00:00]} 2. Nf3 {[%emt 0:00:00]} Nc6 {[%emt 0:00:07]} 3. d4 {[%emt 0:00:16]} cxd4 {[%emt 0:00:05]} 4. Nxd4 {[%emt 0:00:05]} Nf6 {[%emt 0:00:25]} 5. Nc3 {[%emt 0:00:09]} e5 {[%emt 0:00:06]} 6. Ndb5 {[%emt 0:00:17]} d6 {[%emt 0:00:05]} 7. Bg5 {[%emt 0:00:57]} a6 {[%emt 0:00:10]} 8. Na3 {[%emt 0:00:18]} b5 {[%emt 0:00:05]} 9. Nd5 {[%emt 0:00:20]} Be7 {[%emt 0:00:06]} 10. Bxf6 {[%emt 0:00:05]} Bxf6 {[%emt 0:00:04]} 11. c3 {[%emt 0:00:38]} O-O {[%emt 0:00:52]} 12. Nc2 {[%emt 0:01:00]} Rb8 {[%emt 0:01:05]} 13. Be2 {[%emt 0:02:34]} Bg5 {[%emt 0:00:55]} 14. O-O {[%emt 0:00:08]} Kh8 {[%emt 0:01:33]} 15. Ncb4 {[%emt 0:17:45]} Nxb4 {[%emt 0:02:06]} 16. Nxb4 {[%emt 0:02:17]} Bb7 {[%emt 0:02:22]} 17. Qd3 {[%emt 0:11:31]} a5 {[%emt 0:09:52]} 18. Nd5 {[%emt 0:03:14]} b4 {[%emt 0:11:40]} 19. Rad1 {[%emt 0:12:43]} bxc3 {[%emt 0:15:14]} 20. Nxc3 {[%emt 0:08:17]} Be7 {[%emt 0:08:19]} 21. Rd2 {[%emt 0:03:21]} Bg5 {[%emt 0:04:14]} 22. Rdd1 {[%emt 0:00:49]} Be7 {[%emt 0:00:05]} 23. Rd2 {[%emt 0:00:04]} Bg5 {[%emt 0:00:03]} 24. Rc2 {[%emt 0:06:04]} f5 {[%emt 0:02:00]} 25. Bf3 {[%emt 0:02:27]} g6 {[%emt 0:22:01]} 26. Rd1 {[%emt 0:04:21]} Be7 {[%emt 0:00:08]} 27. Nd5 {[%emt 0:04:04]} Bxd5 {[%emt 0:05:41]} 28. Qxd5 {[%emt 0:00:08]} Qb6 {[%emt 0:01:04]} 29. exf5 {[%emt 0:02:32]} gxf5 {[%emt 0:01:34]} 30. Qe6 {[%emt 0:00:08]} Qd8 {[%emt 0:03:10]} 31. Rdc1 {[%emt 0:02:39]} Bg5 {[%emt 0:00:49]} 32. Rd1 {[%emt 0:00:52]} Be7 {[%emt 0:00:03]} 33. Be2 {[%emt 0:02:18]} Rf6 {[%emt 0:00:36]} 34. Qd5 {[%emt 0:01:01]} Rg6 {[%emt 0:00:16]} 35. g3 {[%emt 0:02:39]} Bf8 {[%emt 0:04:52]} 36. Rd3 {[%emt 0:02:56]} f4 {[%emt 0:04:01]} 37. Rdc3 {[%emt 0:02:06]} fxg3 {[%emt 0:00:04]} 38. hxg3 {[%emt 0:00:39]} Qb6 {[%emt 0:01:37]} 39. Kg2 {[%emt 0:01:39]} Rf6 {[%emt 0:00:40]} 40. Rf3 {[%emt 0:02:58]} Rxf3 {[%emt 0:01:02]} 41. Bxf3 {[%emt 0:32:23]} Qd4 {[%emt 0:30:35]} 42. Qe6 {[%emt 0:01:42]} Qa7 {[%emt 0:00:00]} 43. Be4 {[%emt 0:00:00]} Qg7 {[%emt 0:00:00]} 44. b3 {[%emt 0:00:00]} Qg8 {[%emt 0:00:00]} 45. Qf6+ {[%emt 0:00:00]} Qg7 {[%emt 0:00:00]} 46. Qf5 {[%emt 0:00:00]} Rd8 {[%emt 0:00:00]} 47. Rc8 {[%emt 0:00:00]} Rxc8 {[%emt 0:00:00]} 48. Qxc8 {[%emt 0:00:00]} h5 {[%emt 0:00:00]} 49. Qd8 {[%emt 0:00:00]} Qe7 {[%emt 0:00:00]} 50. Qxa5 {[%emt 0:00:00]} h4 {[%emt 0:00:00]} 51. Qd2 {[%emt 0:00:00]} Qf6 {[%emt 0:00:00]} 52. Qd3 {[%emt 0:00:00]} Be7 {[%emt 0:00:00]} 53. Qf3 {[%emt 0:00:00]} hxg3 {[%emt 0:00:00]} 54. Qxf6+ {[%emt 0:00:00]} Bxf6 {[%emt 0:00:00]} 55. fxg3 {[%emt 0:00:00]} Bg5 {[%emt 0:00:00]} 56. b4 {[%emt 0:00:00]} Bd2 {[%emt 0:00:00]} 57. b5 {[%emt 0:00:07]} Ba5 {[%emt 0:00:00]} 58. Kf3 {[%emt 0:00:21]} Kg7 {[%emt 0:00:00]} 59. Bd5 {[%emt 0:00:45]} Kf6 {[%emt 0:00:00]} 60. Ke4 {[%emt 0:00:06]} Bb6 {[%emt 0:00:00]} 61. a4 {[%emt 0:01:10]} Ba5 {[%emt 0:00:00]} 62. Bb3 {[%emt 0:00:46]} Ke7 {[%emt 0:00:00]} 63. Kd5 {[%emt 0:00:34]} Kd7 {[%emt 0:00:00]} 64. g4 {[%emt 0:00:12]} Bd2 {[%emt 0:00:00]} 65. Ke4 {[%emt 0:01:11]} Ke7 {[%emt 0:00:00]} 66. Kf5 {[%emt 0:00:20]} 1-0

[Event "GM Clarion Congress Hotel 2020"]
[Site "Ceske Budejovice"]
[Date "2020.07.01"]
[Round "1.5"]
[White "Horvath, Dominik"]
[Black "Cernousek, Lukas"]
[Result "1/2-1/2"]
[ECO "C49"]
[WhiteElo "2446"]
[BlackElo "2458"]
[Annotator "ChessBase"]
[PlyCount "70"]
[EventDate "2020.07.01"]
[EventType "tourn"]
[EventCountry "CZE"]
[SourceTitle "playchess.com"]
[Source "ChessBase"]
[SourceQuality "1"]
[TimeControl "40/5400+30:1800+30"]

1. e4 {[%emt 0:00:00]} e5 {[%emt 0:02:11]} 2. Nf3 {[%emt 0:00:00]} Nf6 {[%emt 0:00:06]} 3. Nc3 {[%emt 0:00:00]} Nc6 {[%emt 0:00:05]} 4. Bb5 {[%emt 0:00:04]} Bb4 {[%emt 0:02:48]} 5. Bxc6 {[%emt 0:00:31]} bxc6 {[%emt 0:05:52]} 6. Nxe5 {[%emt 0:02:44]} Qe7 {[%emt 0:01:37]} 7. Nd3 {[%emt 0:00:59]} Bxc3 {[%emt 0:00:59]} 8. dxc3 {[%emt 0:00:48]} Qxe4+ {[%emt 0:00:12]} 9. Qe2 {[%emt 0:00:04]} Qxe2+ {[%emt 0:12:18]} 10. Kxe2 {[%emt 0:00:07]} O-O {[%emt 0:01:02]} 11. f3 {[%emt 0:04:30]} Re8+ {[%emt 0:04:56]} 12. Kf2 {[%emt 0:00:16]} d6 {[%emt 0:01:02]} 13. Bg5 {[%emt 0:06:21]} Nd7 {[%emt 0:00:06]} 14. Rhe1 {[%emt 0:06:18]} Bb7 {[%emt 0:00:12]} 15. b3 {[%emt 0:07:39]} Kf8 {[%emt 0:08:50]} 16. a4 {[%emt 0:02:44]} c5 {[%emt 0:07:35]} 17. c4 {[%emt 0:00:26]} Rxe1 {[%emt 0:01:09]} 18. Rxe1 {[%emt 0:02:23]} Re8 {[%emt 0:00:06]} 19. Rd1 {[%emt 0:01:41]} f6 {[%emt 0:13:02]} 20. Bd2 {[%emt 0:00:24]} g5 {[%emt 0:00:29]} 21. Ba5 {[%emt 0:01:35]} Nb6 {[%emt 0:02:53]} 22. Nc1 {[%emt 0:03:16]} Re5 {[%emt 0:13:17]} 23. Ne2 {[%emt 0:05:44]} Ke7 {[%emt 0:00:24]} 24. Bc3 {[%emt 0:03:41]} Re6 {[%emt 0:00:13]} 25. h4 {[%emt 0:01:18]} Kf7 {[%emt 0:04:01]} 26. Ba5 {[%emt 0:08:30]} Kg6 {[%emt 0:03:19]} 27. Nc3 {[%emt 0:01:36]} a6 {[%emt 0:00:01]} 28. g4 {[%emt 0:11:06]} h5 {[%emt 0:02:42]} 29. gxh5+ {[%emt 0:05:08]} Kxh5 {[%emt 0:06:24]} 30. Nd5 {[%emt 0:03:56]} Nxd5 {[%emt 0:04:03]} 31. cxd5 {[%emt 0:00:04]} Re7 {[%emt 0:00:06]} 32. hxg5 {[%emt 0:00:09]} Kxg5 {[%emt 0:01:48]} 33. c4 {[%emt 0:01:04]} Kf5 {[%emt 0:00:05]} 34. Rd3 {[%emt 0:06:39]} Rd7 {[%emt 0:00:51]} 35. b4 {[%emt 0:01:46]} Ke5 1/2-1/2

[Event "GM Clarion Congress Hotel 2020"]
[Site "Ceske Budejovice"]
[Date "2020.07.02"]
[Round "2.4"]
[White "Mikes, Jan"]
[Black "Kraus, Tomas"]
[Result "1/2-1/2"]
[ECO "E81"]
[WhiteElo "2373"]
[BlackElo "2453"]
[Annotator "ChessBase"]
[PlyCount "49"]
[EventDate "2020.07.01"]
[EventType "tourn"]
[EventCountry "CZE"]
[SourceTitle "playchess.com"]
[Source "ChessBase"]
[SourceQuality "1"]
[TimeControl "40/5400+30:1800+30"]

1. d4 {[%emt 0:00:00]} Nf6 {[%emt 0:02:39]} 2. c4 {[%emt 0:00:00]} g6 {[%emt 0:00:52]} 3. Nc3 {[%emt 0:01:14]} Bg7 {[%emt 0:02:17]} 4. e4 {[%emt 0:00:35]} d6 {[%emt 0:00:17]} 5. f3 {[%emt 0:03:55]} O-O {[%emt 0:03:27]} 6. Be3 {[%emt 0:00:25]} c5 {[%emt 0:03:50]} 7. Nge2 {[%emt 0:00:48]} Nc6 {[%emt 0:00:27]} 8. d5 {[%emt 0:00:34]} Ne5 {[%emt 0:00:06]} 9. Ng3 {[%emt 0:00:05]} h5 {[%emt 0:01:07]} 10. Be2 {[%emt 0:00:23]} h4 {[%emt 0:00:49]} 11. Nf1 {[%emt 0:00:05]} e6 {[%emt 0:01:52]} 12. Nd2 {[%emt 0:10:49]} exd5 {[%emt 0:03:40]} 13. cxd5 {[%emt 0:00:07]} h3 {[%emt 0:02:29]} 14. g3 {[%emt 0:04:00]} a6 {[%emt 0:03:50]} 15. a4 {[%emt 0:00:20]} Bd7 {[%emt 0:05:22]} 16. a5 {[%emt 0:00:32]} b5 {[%emt 0:04:50]} 17. axb6 {[%emt 0:00:18]} Qxb6 {[%emt 0:00:43]} 18. Rb1 {[%emt 0:00:05]} Qb4 {[%emt 0:05:27]} 19. O-O {[%emt 0:00:55]} Bb5 {[%emt 0:01:16]} 20. Qc2 {[%emt 0:03:00]} Bxe2 {[%emt 0:03:18]} 21. Nxe2 {[%emt 0:00:08]} Qb5 {[%emt 0:03:23]} 22. Nc3 {[%emt 0:00:35]} Qb4 {[%emt 0:00:09]} 23. Ne2 {[%emt 0:00:27]} Qb5 {[%emt 0:02:43]} 24. Nc3 {[%emt 0:00:07]} Qb4 {[%emt 0:03:46]} 25. Ne2 {[%emt 0:00:13]} 1/2-1/2

[Event "GM Clarion Congress Hotel 2020"]
[Site "Ceske Budejovice"]
[Date "2020.07.03"]
[Round "3.5"]
[White "Cernousek, Lukas"]
[Black "Yankelevich, Lev"]
[Result "1-0"]
[ECO "D02"]
[WhiteElo "2458"]
[BlackElo "2461"]
[Annotator "ChessBase"]
[PlyCount "63"]
[EventDate "2020.07.01"]
[EventType "tourn"]
[EventCountry "CZE"]
[SourceTitle "playchess.com"]
[Source "ChessBase"]
[SourceQuality "1"]
[TimeControl "40/5400+30:1800+30"]

1. d4 {[%emt 0:00:00]} d5 {[%emt 0:03:27]} 2. Nf3 {[%emt 0:00:00]} Nf6 {[%emt 0:00:05]} 3. g3 {[%emt 0:00:00]} c5 {[%emt 0:00:06]} 4. Bg2 {[%emt 0:00:00]} cxd4 {[%emt 0:00:04]} 5. O-O {[%emt 0:00:05]} Bd7 {[%emt 0:00:37]} 6. Nxd4 {[%emt 0:06:40]} e5 {[%emt 0:00:31]} 7. Nb3 {[%emt 0:00:06]} Be6 {[%emt 0:12:59]} 8. c4 {[%emt 0:02:16]} Nc6 {[%emt 0:00:30]} 9. cxd5 {[%emt 0:00:10]} Nxd5 {[%emt 0:05:47]} 10. N1d2 {[%emt 0:02:04]} Qb6 {[%emt 0:21:14]} 11. Nc4 {[%emt 0:36:25]} Qb5 {[%emt 0:01:41]} 12. Qd3 {[%emt 0:00:09]} Nc7 {[%emt 0:11:00]} 13. Nd6+ {[%emt 0:01:36]} Bxd6 {[%emt 0:00:05]} 14. Qxd6 {[%emt 0:00:07]} Bxb3 {[%emt 0:00:08]} 15. Qxc7 {[%emt 0:10:39]} Bd5 {[%emt 0:08:49]} 16. a4 {[%emt 0:18:49]} Qc4 {[%emt 0:00:22]} 17. Rd1 {[%emt 0:15:38]} Bxg2 {[%emt 0:13:18]} 18. Qd7+ {[%emt 0:00:02]} Kf8 {[%emt 0:00:05]} 19. Kxg2 {[%emt 0:00:40]} Qe4+ {[%emt 0:00:35]} 20. Kg1 {[%emt 0:01:01]} h5 {[%emt 0:00:39]} 21. Ra3 {[%emt 0:03:14]} Qxe2 {[%emt 0:02:29]} 22. Re3 {[%emt 0:00:34]} Qg4 {[%emt 0:00:18]} 23. Qxg4 {[%emt 0:00:36]} hxg4 {[%emt 0:00:02]} 24. Rd7 {[%emt 0:00:38]} Nd4 {[%emt 0:00:36]} 25. h4 {[%emt 0:00:23]} gxh3 {[%emt 0:04:46]} 26. Bd2 {[%emt 0:00:02]} h2+ {[%emt 0:02:39]} 27. Kh1 {[%emt 0:00:00]} f6 {[%emt 0:00:01]} 28. Bc3 {[%emt 0:00:17]} Ne6 {[%emt 0:05:15]} 29. f4 {[%emt 0:00:34]} Rd8 {[%emt 0:05:13]} 30. Rxd8+ {[%emt 0:00:43]} Nxd8 {[%emt 0:00:02]} 31. fxe5 {[%emt 0:00:18]} fxe5 {[%emt 0:00:32]} 32. Rxe5 {[%emt 0:01:36]} 1-0

[Event "GM Clarion Congress Hotel 2020"]
[Site "Ceske Budejovice"]
[Date "2020.07.05"]
[Round "5.1"]
[White "Kraus, Tomas"]
[Black "Stefansson, Hannes"]
[Result "1/2-1/2"]
[ECO "B41"]
[WhiteElo "2449"]
[BlackElo "2542"]
[Annotator "ChessBase"]
[PlyCount "60"]
[EventDate "2020.07.01"]
[EventType "tourn"]
[EventCountry "CZE"]
[SourceTitle "playchess.com"]
[Source "ChessBase"]
[SourceQuality "1"]
[TimeControl "40/5400+30:1800+30"]

1. e4 {[%emt 0:00:40]} c5 {[%emt 0:00:00]} 2. Nf3 {[%emt 0:00:21]} e6 {[%emt 0:00:09]} 3. d4 {[%emt 0:00:12]} cxd4 {[%emt 0:00:16]} 4. Nxd4 {[%emt 0:00:06]} a6 {[%emt 0:00:20]} 5. c4 {[%emt 0:00:05]} Nf6 {[%emt 0:01:07]} 6. Nc3 {[%emt 0:00:06]} Bb4 {[%emt 0:01:38]} 7. Qd3 {[%emt 0:01:43]} d5 {[%emt 0:04:02]} 8. exd5 {[%emt 0:01:47]} exd5 {[%emt 0:00:07]} 9. Be2 {[%emt 0:00:26]} O-O {[%emt 0:00:26]} 10. O-O {[%emt 0:00:48]} Nc6 {[%emt 0:00:50]} 11. Nxc6 {[%emt 0:03:42]} bxc6 {[%emt 0:00:07]} 12. cxd5 {[%emt 0:00:04]} Nxd5 {[%emt 0:02:15]} 13. Nxd5 {[%emt 0:00:14]} Qxd5 {[%emt 0:00:52]} 14. Qxd5 {[%emt 0:04:31]} cxd5 {[%emt 0:00:06]} 15. Be3 {[%emt 0:00:46]} Be6 {[%emt 0:02:41]} 16. Rac1 {[%emt 0:09:48]} Be7 {[%emt 0:05:21]} 17. Bd4 {[%emt 0:02:06]} Rfc8 {[%emt 0:01:28]} 18. Bd3 {[%emt 0:06:04]} a5 {[%emt 0:08:25]} 19. f4 {[%emt 0:02:01]} g6 {[%emt 0:03:15]} 20. Rce1 {[%emt 0:09:07]} Bc5 {[%emt 0:05:40]} 21. Bxc5 {[%emt 0:01:24]} Rxc5 {[%emt 0:00:07]} 22. f5 {[%emt 0:01:12]} gxf5 {[%emt 0:00:08]} 23. Bxf5 {[%emt 0:00:07]} d4 {[%emt 0:02:03]} 24. Bxe6 {[%emt 0:03:05]} fxe6 {[%emt 0:00:07]} 25. Rxe6 {[%emt 0:00:56]} Rc2 {[%emt 0:00:24]} 26. Rd6 {[%emt 0:09:25]} Rxb2 {[%emt 0:01:23]} 27. a3 {[%emt 0:01:59]} Ra2 {[%emt 0:01:31]} 28. Rxd4 {[%emt 0:16:22]} Rxa3 {[%emt 0:00:20]} 29. Rd7 {[%emt 0:02:43]} Rb8 {[%emt 0:02:05]} 30. Rc1 {[%emt 0:07:22]} Rf8 {[%emt 0:04:13]} 1/2-1/2

[Event "GM Clarion Congress Hotel 2020"]
[Site "Ceske Budejovice"]
[Date "2020.07.05"]
[Round "5.2"]
[White "Michalik, Peter"]
[Black "Malinovsky, Karel"]
[Result "1-0"]
[ECO "E06"]
[WhiteElo "2585"]
[BlackElo "2459"]
[Annotator "ChessBase"]
[PlyCount "81"]
[EventDate "2020.07.01"]
[EventType "tourn"]
[EventCountry "CZE"]
[SourceTitle "playchess.com"]
[Source "ChessBase"]
[SourceQuality "1"]
[TimeControl "40/5400+30:1800+30"]

1. c4 {[%emt 0:00:00]} e6 {[%emt 0:00:00]} 2. Nf3 {[%emt 0:00:00]} Nf6 {[%emt 0:00:02]} 3. d4 {[%emt 0:00:02]} d5 {[%emt 0:00:10]} 4. g3 {[%emt 0:00:07]} Be7 {[%emt 0:00:14]} 5. Bg2 {[%emt 0:00:06]} O-O {[%emt 0:00:06]} 6. Nc3 {[%emt 0:00:04]} dxc4 {[%emt 0:00:54]} 7. Ne5 {[%emt 0:00:07]} Nc6 {[%emt 0:03:40]} 8. Bxc6 {[%emt 0:00:07]} bxc6 {[%emt 0:00:06]} 9. Nxc6 {[%emt 0:00:05]} Qe8 {[%emt 0:00:19]} 10. Nxe7+ {[%emt 0:00:06]} Qxe7 {[%emt 0:00:06]} 11. Qa4 {[%emt 0:00:05]} c5 {[%emt 0:00:54]} 12. dxc5 {[%emt 0:00:07]} Qxc5 {[%emt 0:01:54]} 13. Be3 {[%emt 0:03:10]} Qc7 {[%emt 0:04:02]} 14. O-O {[%emt 0:00:22]} Nd5 {[%emt 0:02:40]} 15. Bd4 {[%emt 0:00:17]} Nxc3 {[%emt 0:01:02]} 16. Bxc3 {[%emt 0:00:10]} Bd7 {[%emt 0:14:16]} 17. Qa3 {[%emt 0:00:17]} Rac8 {[%emt 0:09:43]} 18. Rfd1 {[%emt 0:03:45]} Bc6 {[%emt 0:00:49]} 19. Rd4 {[%emt 0:03:09]} Ba8 {[%emt 0:07:09]} 20. Rad1 {[%emt 0:03:04]} Rfd8 {[%emt 0:09:06]} 21. Qxa7 {[%emt 0:01:42]} Rxd4 {[%emt 0:02:48]} 22. Qxd4 {[%emt 0:02:05]} f6 {[%emt 0:00:11]} 23. f3 {[%emt 0:03:31]} h5 {[%emt 0:03:10]} 24. Kg2 {[%emt 0:02:00]} e5 {[%emt 0:01:31]} 25. Qh4 {[%emt 0:01:13]} Qf7 {[%emt 0:04:22]} 26. Qh3 {[%emt 0:00:39]} Re8 {[%emt 0:00:17]} 27. Rd7 {[%emt 0:01:55]} Qg6 {[%emt 0:00:25]} 28. e4 {[%emt 0:01:27]} Qg5 {[%emt 0:11:42]} 29. Kf2 {[%emt 0:03:11]} Bc6 {[%emt 0:05:33]} 30. Rd6 {[%emt 0:01:53]} Ba4 {[%emt 0:02:56]} 31. Qf1 {[%emt 0:01:27]} Rc8 {[%emt 0:01:00]} 32. h4 {[%emt 0:00:07]} Qg6 {[%emt 0:00:24]} 33. Bxe5 {[%emt 0:00:56]} Qf7 {[%emt 0:02:35]} 34. Qh3 {[%emt 0:01:36]} Re8 {[%emt 0:02:06]} 35. Bc3 {[%emt 0:00:08]} Qa7+ {[%emt 0:00:52]} 36. Rd4 {[%emt 0:01:36]} Bb5 {[%emt 0:00:55]} 37. Kg2 {[%emt 0:02:59]} Qxa2 {[%emt 0:04:06]} 38. Qf5 {[%emt 0:00:12]} Bc6 {[%emt 0:00:44]} 39. Qxh5 {[%emt 0:00:23]} Qa4 {[%emt 0:02:33]} 40. Qc5 {[%emt 0:00:53]} Bb5 {[%emt 0:00:25]} 41. h5 {[%emt 0:30:19]} 1-0

[Event "GM Clarion Congress Hotel 2020"]
[Site "Ceske Budejovice"]
[Date "2020.07.05"]
[Round "5.4"]
[White "Cernousek, Lukas"]
[Black "Mikes, Jan"]
[Result "1/2-1/2"]
[ECO "D02"]
[WhiteElo "2458"]
[BlackElo "2373"]
[Annotator "ChessBase"]
[PlyCount "55"]
[EventDate "2020.07.01"]
[EventType "tourn"]
[EventCountry "CZE"]
[SourceTitle "playchess.com"]
[Source "ChessBase"]
[SourceQuality "1"]
[TimeControl "40/5400+30:1800+30"]

1. d4 {[%emt 0:00:00]} d5 {[%emt 0:00:00]} 2. Nf3 {[%emt 0:00:00]} Nf6 {[%emt 0:00:00]} 3. g3 {[%emt 0:00:00]} c6 {[%emt 0:00:00]} 4. Bg2 {[%emt 0:00:00]} g6 {[%emt 0:00:05]} 5. c4 {[%emt 0:05:27]} dxc4 {[%emt 0:00:06]} 6. a4 {[%emt 0:08:23]} a5 {[%emt 0:00:15]} 7. Na3 {[%emt 0:01:09]} Nbd7 {[%emt 0:00:33]} 8. Nxc4 {[%emt 0:02:53]} Nb6 {[%emt 0:00:25]} 9. Nce5 {[%emt 0:15:48]} Bg7 {[%emt 0:01:21]} 10. Ng5 {[%emt 0:09:27]} O-O {[%emt 0:00:24]} 11. O-O {[%emt 0:00:07]} Nfd5 {[%emt 0:08:28]} 12. e4 {[%emt 0:05:54]} Nb4 {[%emt 0:00:52]} 13. f4 {[%emt 0:03:32]} e6 {[%emt 0:04:52]} 14. Ngf3 {[%emt 0:03:41]} Qe7 {[%emt 0:06:21]} 15. b3 {[%emt 0:11:17]} Nd7 {[%emt 0:03:56]} 16. Nc4 {[%emt 0:03:37]} Rd8 {[%emt 0:02:26]} 17. Be3 {[%emt 0:03:28]} b6 {[%emt 0:04:59]} 18. Rf2 {[%emt 0:02:53]} Ba6 {[%emt 0:01:08]} 19. Rc1 {[%emt 0:03:41]} Rab8 {[%emt 0:32:17]} 20. Rd2 {[%emt 0:01:07]} Nf6 {[%emt 0:02:52]} 21. Nfe5 {[%emt 0:01:15]} Ne8 {[%emt 0:01:18]} 22. Nf3 {[%emt 0:06:14]} Nf6 {[%emt 0:00:45]} 23. Ne1 {[%emt 0:00:31]} c5 {[%emt 0:08:58]} 24. dxc5 {[%emt 0:05:18]} Na2 {[%emt 0:01:36]} 25. Rcc2 {[%emt 0:00:20]} Nb4 {[%emt 0:00:05]} 26. Rc1 {[%emt 0:00:05]} Na2 {[%emt 0:00:13]} 27. Rcc2 {[%emt 0:05:37]} Nb4 {[%emt 0:00:04]} 28. Rc1 1/2-1/2

[Event "GM Clarion Congress Hotel 2020"]
[Site "Ceske Budejovice"]
[Date "2020.07.05"]
[Round "5.5"]
[White "Yankelevich, Lev"]
[Black "Mihok, Oliver"]
[Result "1/2-1/2"]
[ECO "A59"]
[WhiteElo "2461"]
[BlackElo "2552"]
[Annotator "ChessBase"]
[PlyCount "57"]
[EventDate "2020.07.01"]
[EventType "tourn"]
[EventCountry "CZE"]
[SourceTitle "playchess.com"]
[Source "ChessBase"]
[SourceQuality "1"]
[TimeControl "40/5400+30:1800+30"]

1. d4 {[%emt 0:00:00]} Nf6 {[%emt 0:00:00]} 2. c4 {[%emt 0:00:00]} c5 {[%emt 0:00:00]} 3. d5 {[%emt 0:00:02]} b5 {[%emt 0:00:00]} 4. cxb5 {[%emt 0:00:12]} a6 {[%emt 0:00:06]} 5. bxa6 {[%emt 0:00:13]} g6 {[%emt 0:00:04]} 6. Nc3 {[%emt 0:00:07]} Bxa6 {[%emt 0:00:09]} 7. e4 {[%emt 0:00:24]} Bxf1 {[%emt 0:00:05]} 8. Kxf1 {[%emt 0:00:12]} d6 {[%emt 0:00:07]} 9. Nf3 {[%emt 0:00:12]} Bg7 {[%emt 0:00:04]} 10. g3 {[%emt 0:00:09]} O-O {[%emt 0:00:07]} 11. Kg2 {[%emt 0:00:05]} Qb6 {[%emt 0:00:07]} 12. Qe2 {[%emt 0:12:19]} Qa6 {[%emt 0:05:28]} 13. Qxa6 {[%emt 0:02:28]} Nxa6 {[%emt 0:02:13]} 14. Bd2 {[%emt 0:07:06]} Rfb8 {[%emt 0:06:00]} 15. Rhb1 {[%emt 0:09:17]} Nc7 {[%emt 0:12:37]} 16. a3 {[%emt 0:04:26]} Rb3 {[%emt 0:06:19]} 17. Bc1 {[%emt 0:02:24]} Rxc3 {[%emt 0:05:50]} 18. bxc3 {[%emt 0:00:07]} Nxe4 {[%emt 0:00:04]} 19. Rb7 {[%emt 0:06:51]} Nxc3 {[%emt 0:00:25]} 20. a4 {[%emt 0:02:49]} N3xd5 {[%emt 0:07:27]} 21. Ra3 {[%emt 0:03:04]} Kf8 {[%emt 0:06:10]} 22. Nd2 {[%emt 0:00:31]} Ke8 {[%emt 0:02:23]} 23. Nc4 {[%emt 0:00:06]} Kd8 {[%emt 0:08:22]} 24. Bd2 {[%emt 0:00:06]} Kc8 {[%emt 0:01:16]} 25. Rb1 {[%emt 0:01:12]} Bd4 {[%emt 0:06:46]} 26. Ba5 {[%emt 0:04:50]} Na6 {[%emt 0:05:20]} 27. Rab3 {[%emt 0:05:00]} Nab4 {[%emt 0:01:32]} 28. Bxb4 {[%emt 0:00:30]} Rxa4 {[%emt 0:01:38]} 29. Bxc5 {[%emt 0:04:31]} 1/2-1/2

[Event "GM Clarion Congress Hotel 2020"]
[Site "Ceske Budejovice"]
[Date "2020.07.06"]
[Round "6.4"]
[White "Malinovsky, Karel"]
[Black "Horvath, Dominik"]
[Result "1/2-1/2"]
[ECO "C88"]
[WhiteElo "2459"]
[BlackElo "2446"]
[Annotator "RC"]
[PlyCount "99"]
[EventDate "2020.07.01"]
[EventType "tourn"]
[EventCountry "CZE"]
[SourceTitle "playchess.com"]
[Source "ChessBase"]
[SourceQuality "1"]
[TimeControl "40/5400+30:1800+30"]

1. e4 {[%emt 0:00:00]} e5 {[%emt 0:00:00]} 2. Nf3 {[%emt 0:00:00]} Nc6 {[%emt 0:00:00]} 3. Bb5 {[%emt 0:00:00]} a6 {[%emt 0:00:00]} 4. Ba4 {[%emt 0:00:00]} Nf6 {[%emt 0:00:00]} 5. O-O {[%emt 0:00:01]} Be7 {[%emt 0:00:00]} 6. Re1 {[%emt 0:00:06]} b5 {[%emt 0:00:00]} 7. Bb3 {[%emt 0:00:06]} O-O {[%emt 0:00:04]} 8. a4 {[%emt 0:03:56]} d5 {[%emt 0:02:00]} 9. Bxd5 {[%emt 0:04:19]} Nxd5 {[%emt 0:02:26]} 10. exd5 {[%emt 0:00:06]} Nd4 {[%emt 0:00:33]} 11. Nxe5 {[%emt 0:13:16]} Bb7 {[%emt 0:05:57]} 12. Nc6 {[%emt 0:12:40]} Nxc6 {[%emt 0:01:54]} 13. dxc6 {[%emt 0:00:07]} Bxc6 {[%emt 0:00:03]} 14. axb5 {[%emt 0:00:18]} axb5 {[%emt 0:00:46]} 15. Rxa8 {[%emt 0:00:07]} Bxa8 {[%emt 0:00:06]} 16. Qe2 {[%emt 0:01:32]} Qd5 {[%emt 0:05:41]} 17. Qf1 {[%emt 0:01:15]} Bd6 {[%emt 0:17:00]} 18. Nc3 {[%emt 0:07:51]} Qh5 {[%emt 0:00:06]} 19. h3 {[%emt 0:00:55]} Bc6 {[%emt 0:12:47]} 20. d3 {[%emt 0:11:57]} f5 {[%emt 0:00:59]} 21. Qe2 {[%emt 0:07:05]} Qg6 {[%emt 0:12:28]} 22. Qe6+ {[%emt 0:03:58]} Qxe6 {[%emt 0:00:05]} 23. Rxe6 {[%emt 0:00:05]} b4 {[%emt 0:00:25]} 24. Nb1 {[%emt 0:01:07]} Ra8 {[%emt 0:08:12]} 25. Re1 {[%emt 0:02:51]} Ba4 {[%emt 0:05:03]} 26. Re2 {[%emt 0:06:16]} Kf7 {[%emt 0:03:34]} 27. g3 {[%emt 0:01:54]} h6 {[%emt 0:02:33]} 28. Bf4 {[%emt 0:12:03]} Bxf4 {[%emt 0:02:40]} 29. gxf4 {[%emt 0:00:02]} Bc6 {[%emt 0:03:37]} 30. Re1 {[%emt 0:03:18]} g5 {[%emt 0:06:38]} 31. fxg5 {[%emt 0:00:28]} hxg5 {[%emt 0:00:02]} 32. Nd2 {[%emt 0:00:53]} Rh8 {[%emt 0:00:55]} 33. Nc4 {[%emt 0:01:05]} Bb7 {[%emt 0:00:48]} 34. Ne5+ {[%emt 0:01:43]} Kg7 {[%emt 0:00:03]} 35. f4 {[%emt 0:02:10]} Rxh3 {[%emt 0:01:07]} 36. fxg5 {[%emt 0:00:06]} f4 {[%emt 0:02:01]} 37. Rf1 {[%emt 0:01:31]} Rg3+ {[%emt 0:01:50]} 38. Kf2 {[%emt 0:00:32]} Rxg5 {[%emt 0:04:29]} 39. Rg1 {[%emt 0:01:00]} Rxg1 {[%emt 0:00:04]} 40. Kxg1 {[%emt 0:00:05]} Kf6 {[%emt 0:01:04]} 41. Nd7+ {[%emt 0:30:42]} Kf5 {[%emt 0:03:52]} 42. Kf2 {[%emt 0:00:00]} Bc8 {[%emt 0:01:20]} 43. Nc5 {[%emt 0:00:00]} Ke5 {[%emt 0:00:04]} 44. Kf3 {[%emt 0:00:00]} Bf5 {[%emt 0:03:11]} 45. Nb3 {[%emt 0:00:00]} Bg6 {[%emt 0:00:31]} 46. Kg4 {[%emt 0:00:00]} Bf7 {[%emt 0:01:49]} 47. Nd2 {[%emt 0:00:00]} Be6+ {[%emt 0:00:03]} 48. Kf3 {[%emt 0:00:00]} Bd5+ {[%emt 0:00:03]} 49. Kg4 {[%emt 0:00:00]} Be6+ {[%emt 0:00:05]} 50. Kf3 {[%emt 0:00:00]} 1/2-1/2